bitfinex-derivatives/quotes_ETHF0:USTF0_20250726
["timestamp","ask_amount","ask_price","bid_price","bid_amount"]
[1753488305729,1.27413039,3722.5,3722.4,1.94456]
[1753488305931,1.27413039,3722.5,3722.4,2.82506]
[1753488306632,0.6584,3722.5,3722.4,2.82506]
[1753488306832,1.5245,3722.7,3722.6,2.82503]
[1753488307032,2.14016496,3722.7,3722.6,2.82503]
[1753488307231,2.51766496,3722.7,3722.6,2.82503]
[1753488307434,0.61566496,3722.7,3722.6,2.82503]
[1753488307640,0.7806,3723.3,3723.2,0.53705]
[1753488307936,1.902,3723.3,3723.2,2.82495]
[1753488308136,1.0245,3723.3,3723.2,2.82495]
[1753488308340,1.5245,3723.6,3723.5,2.8249]
[1753488308637,2.13987687,3723.6,3723.5,2.8249]
[1753488308841,1.27377687,3723.6,3723.5,2.8249]
[1753488309035,0.2553,3723.8,3723.7,1.11027]
[1753488309241,1.27370154,3723.8,3723.7,6.03267]
[1753488309437,0.2553,3723.8,3723.7,6.03267]
[1753488309634,0.4553,3723.9,3723.8,2.82486]
[1753488309834,1.2245,3723.9,3723.8,2.82486]
[1753488310040,0.2,3723.9,3723.8,2.82486]
[1753488312947,2.8189,3724.9,3724.8,2.45022]
[1753488313240,2.2821,3724.9,3724.8,2.45022]
[1753488313434,0.6584,3724.9,3724.8,2.82472]
[1753488313631,1.8268,3725.2,3725.1,1.47447]
[1753488313833,1.0245,3725.2,3725.1,2.82467]
[1753488314043,1.5245,3725.2,3725.1,6.03247]
[1753488314846,1.0245,3725.2,3725.1,6.03247]
[1753488315237,1.7821,3725.5,3725.4,1.47443]
[1753488315444,2.2821,3725.5,3725.4,2.82463]
[1753488315842,1.0245,3725.5,3725.4,2.82463]
[1753488316244,5.4899,3725.8,3725.7,1.47439]
[1753488316444,5.4899,3725.8,3725.7,2.82459]
[1753488317147,2.2821,3725.8,3725.7,2.82459]
[1753488317944,2.2821,3725.8,3725.7,6.03239]
[1753488318346,2.2821,3725.8,3725.7,2.82459]
[1753488318748,2.81877,3725.8,3725.7,2.82459]
[1753488319345,2.81877,3725.8,3725.7,2.45009]
[1753488320552,2.81877,3725.8,3725.7,1.9134]
[1753488321149,2.81877,3725.8,3725.7,2.45009]
[1753488321951,2.81877,3725.8,3725.7,1.9134]
[1753488322150,0.2,3725.9,3725.2,3.2078]
[1753488322151,2.2821,3725.3,3725.2,2.45016]
[1753488323749,2.81884,3725.3,3725.2,0.3041]
[1753488324051,2.81889,3725.0,3724.9,2.8247]
[1753488324251,2.81889,3725.0,3724.9,2.2879]
[1753488324453,1.0245,3725.0,3724.9,2.8247]
[1753488324650,1.56129,3725.0,3724.9,2.8247]
[1753488325553,2.06129,3725.0,3724.9,2.8247]
[1753488326758,1.56129,3725.0,3724.9,2.8247]
[1753488327351,0.6584,3725.0,3724.9,2.8247]
[1753488327760,2.2821,3725.3,3725.2,2.82466]
[1753488328549,2.81885,3725.3,3725.2,2.82466]
[1753488328948,2.81885,3725.3,3725.2,0.3041]
[1753488329651,2.81885,3725.3,3724.9,1.9134]
[1753488329652,1.46049,3725.0,3724.9,1.9134]
[1753488329853,2.81889,3725.0,3724.9,1.9134]
[1753488330249,2.81889,3725.0,3724.9,0.3041]
[1753488330553,2.81889,3725.0,3724.9,0.8409]
[1753488330748,2.81889,3725.0,3724.9,0.3041]
[1753488330955,2.36363,3724.7,3724.6,0.4596]
[1753488331159,0.4031,3724.7,3724.6,6.03254]
[1753488331358,1.0245,3724.7,3724.6,6.03254]
[1753488331559,2.81893,3724.7,3724.6,0.6685]
[1753488331760,2.81893,3724.7,3724.6,1.20534]
[1753488331961,2.81893,3724.7,3724.6,1.66494]
[1753488332864,2.81893,3724.7,3724.6,1.1281]
[1753488333762,0.53686,3724.5,3724.4,1.47457]
[1753488333963,2.81896,3724.5,3724.4,2.45027]
[1753488334361,2.2821,3724.5,3724.4,2.45027]
[1753488334762,2.2821,3724.5,3724.4,2.82477]
[1753488336170,0.6584,3724.5,3724.4,2.82477]
[1753488337659,1.7468,3724.5,3724.4,1.87697]
[1753488337865,2.77766,3724.5,3724.4,2.14887]
[1753488338166,2.77766,3724.5,3724.4,2.41627]
[1753488338769,2.2408,3724.5,3724.4,2.41627]
[1753488339166,2.2408,3724.5,3724.4,2.78977]
[1753488339369,2.2199,3724.8,3724.7,1.94773]
[1753488339570,2.83248048,3724.8,3724.7,5.99653]
[1753488339771,1.4774,3724.8,3724.7,5.99653]
[1753488340271,2.0898264,3724.8,3724.7,5.99653]
[1753488340662,1.5958264,3724.8,3724.7,5.99653]
[1753488341068,2.0898264,3724.8,3724.7,5.99653]
[1753488341466,0.7033,3725.0,3724.9,1.1787]
[1753488341671,1.69423722,3725.0,3724.9,2.7887]
[1753488341872,2.53413722,3725.0,3724.9,2.7887]
[1753488342171,2.09013722,3725.0,3724.9,2.7887]
[1753488342372,1.59613722,3725.0,3724.9,2.7887]
[1753488343376,2.83263722,3725.0,3724.9,2.7887]
[1753488343873,3.36942722,3725.0,3724.9,0.5368]
[1753488344073,2.83263722,3725.0,3724.9,1.9047]
[1753488344273,2.83263722,3725.0,3724.9,2.4152]
[1753488344670,2.83263722,3725.0,3724.7,3.2078]
[1753488344876,1.44055,3724.7,3724.6,0.53682]
[1753488345077,3.36948722,3724.7,3724.6,0.53682]
[1753488345676,2.83263722,3724.7,3724.6,0.53682]
[1753488345880,2.83263722,3724.7,3724.6,2.78872]
[1753488346067,2.2199,3724.7,3724.6,2.78872]
[1753488346275,2.2199,3724.7,3724.6,2.41522]
[1753488349492,2.75673,3724.7,3724.6,2.41522]
[1753488349689,3.36994913,3724.7,3724.6,2.41522]
[1753488350181,3.36994913,3724.7,3723.8,4.5502]
[1753488350182,0.9037,3724.3,3723.8,4.5502]
[1753488350391,0.9037,3724.3,3724.2,2.4153]
[1753488350789,2.2199,3724.3,3724.2,2.4153]
[1753488351088,2.2199,3724.0,3723.9,2.41534]
[1753488352492,2.2199,3724.0,3723.9,2.78884]
[1753488355092,2.2199,3724.0,3723.9,2.14794]
[1753488355293,2.83336936,3724.0,3723.9,2.41534]
[1753488355493,2.83336936,3724.0,3723.9,2.78884]
[1753488356692,2.2199,3724.0,3723.9,2.78884]
[1753488356892,2.83323037,3724.0,3723.9,2.78884]
[1753488357398,2.2199,3724.0,3723.9,2.78884]
[1753488357588,3.37014786,3724.0,3723.9,2.78884]
[1753488357896,3.37014786,3724.0,3723.9,1.90484]
[1753488358596,3.37014786,3724.0,3723.9,2.41534]
[1753488358996,2.83321786,3724.0,3723.9,2.41534]
[1753488359589,2.83321786,3724.0,3723.9,2.78884]
[1753488359997,3.37014786,3724.0,3723.9,2.78884]
[1753488361099,3.37014786,3724.0,3723.9,0.53694]
[1753488361596,3.37014786,3724.0,3723.9,0.99554]
[1753488361797,3.37014786,3724.0,3723.9,1.30694]
[1753488361993,3.37014786,3724.0,3723.9,1.81744]
[1753488363191,3.37014786,3724.0,3723.9,0.84834]
[1753488364187,3.37014786,3724.0,3723.9,1.30694]
[1753488364393,3.37014786,3724.0,3723.9,2.14794]
[1753488365497,3.37014786,3724.0,3723.9,2.41534]
[1753488366100,3.37014786,3724.0,3723.9,2.75084944]
[1753488366895,3.37014786,3724.0,3723.9,1.51434944]
[1753488367100,3.37014786,3724.0,3723.9,1.18384944]
[1753488367399,2.75683,3724.0,3723.9,2.11654944]
[1753488367896,2.75683,3724.0,3723.9,2.11653138]
[1753488368702,3.36969226,3724.0,3723.9,2.11653138]
[1753488369300,2.75683,3724.0,3723.9,2.69793138]
[1753488369797,2.75683,3724.0,3723.9,3.06403138]
[1753488369997,2.2199,3724.0,3723.9,3.06403138]
[1753488370702,2.75683,3724.0,3723.9,3.06403138]
[1753488370903,2.2199,3724.0,3723.9,3.06403138]
[1753488371103,1.38,3724.0,3723.9,2.24503138]
[1753488371403,2.2407,3724.0,3723.9,3.06403138]
[1753488374306,2.85314277,3724.0,3723.9,3.06403138]
[1753488375106,2.2407,3724.0,3723.9,3.06403138]
[1753488375504,2.85332031,3724.0,3723.9,3.06403138]
[1753488376407,3.39025031,3724.0,3723.9,3.06403138]
[1753488376706,3.39025031,3724.0,3723.9,3.06403696]
[1753488377105,2.85332031,3724.0,3723.9,3.06403696]
[1753488378207,0.99082031,3724.0,3723.9,3.06403696]
[1753488378397,0.61262031,3724.0,3723.9,3.06403696]
[1753488378598,0.97812031,3724.0,3723.9,3.06403696]
[1753488378802,0.61262031,3724.0,3723.9,3.06403696]
[1753488379611,0.61262031,3724.0,3723.9,3.0640549]
[1753488380010,0.61262031,3724.0,3723.9,3.06405489]
[1753488382213,1.9539,3724.3,3724.2,2.7031]
[1753488382407,2.56743952,3724.3,3724.2,3.03861489]
[1753488382602,2.56743952,3724.3,3724.2,3.03863761]
[1753488383006,1.23513952,3724.3,3724.2,3.03863761]
[1753488383206,0.61353952,3724.3,3724.2,3.03863761]
[1753488384104,0.97903952,3724.3,3724.2,3.03863761]
[1753488384303,0.61353952,3724.3,3724.2,3.03863761]
[1753488385414,0.97903952,3724.3,3724.2,3.03863761]
[1753488386013,0.97926676,3724.3,3724.2,3.03863761]
[1753488386215,0.61376676,3724.3,3724.2,6.24643761]
[1753488389912,0.3655,3724.8,3724.7,0.53683]
[1753488390110,1.4242,3725.1,3725.0,1.40419]
[1753488390314,1.9539,3725.1,3725.0,3.03852761]
[1753488390512,2.2421,3725.1,3725.0,3.03852761]
[1753488392419,2.2421,3725.1,3725.0,0.33553761]
[1753488392612,2.77888,3725.1,3725.0,0.33553761]
[1753488394218,1.4121,3724.9,3724.8,0.53682]
[1753488394420,2.7789,3724.9,3724.8,0.87165136]
[1753488395015,2.7789,3724.9,3724.8,0.33483136]
[1753488395407,1.40368,3724.4,3724.3,0.53688]
[1753488395621,2.2229,3724.4,3724.3,2.11019808]
[1753488396019,2.2229,3724.4,3724.3,2.11019609]
[1753488396212,2.2229,3724.4,3724.3,2.43789609]
[1753488396611,2.2229,3724.4,3724.3,2.69239609]
[1753488396824,2.75978,3724.4,3724.3,2.69239609]
[1753488397016,2.2229,3724.4,3724.3,2.69239609]
[1753488397519,2.75978,3724.4,3724.3,3.07759609]
[1753488398715,2.75978,3724.4,3724.3,2.69239609]
[1753488399423,2.2229,3724.4,3724.3,3.07759609]
[1753488399817,2.75978,3724.4,3724.3,3.07759609]
[1753488400215,2.75978,3724.4,3724.3,3.07685965]
[1753488400620,2.75978,3724.4,3724.3,3.07687648]
[1753488403221,2.75978,3724.4,3724.3,3.07690935]
[1753488404919,7.2229,3724.4,3723.5,1.91951629]
[1753488405120,0.8668,3723.5,3723.3,1.91951629]
[1753488405322,2.2229,3723.4,3723.3,3.77474629]
[1753488405530,2.2229,3723.4,3723.3,4.27714629]
[1753488405825,2.2229,3723.4,3723.3,4.66234629]
[1753488406015,2.75992,3723.4,3723.3,2.22741629]
[1753488406220,1.40384,3723.3,3723.2,1.91951629]
[1753488406414,1.40386,3723.1,3723.0,3.2078]
[1753488406621,2.37656,3723.1,3723.0,3.2078]
[1753488406925,2.2229,3723.1,3723.0,3.2078]
[1753488407227,2.75996,3723.1,3723.0,4.24728]
[1753488407521,2.75999,3722.9,3722.8,2.39939537]
[1753488407724,2.2229,3722.8,3722.7,0.53712]
[1753488408621,0.3834,3722.8,3722.7,2.74292]
[1753488409825,0.6396,3722.8,3722.7,2.74292]
[1753488410015,1.1055,3722.8,3722.7,2.74292]
[1753488410724,0.6396,3722.8,3722.7,2.74292]
[1753488410919,2.2229,3723.1,3723.0,1.42718]
[1753488411126,2.75996,3723.1,3723.0,2.2058]
[1753488411425,2.75996,3723.1,3723.0,1.8206]
[1753488411826,2.2229,3722.9,3722.8,0.5371]
[1753488412623,2.2229,3722.9,3722.8,1.0395]
[1753488413115,2.2229,3722.9,3722.8,2.1032]
[1753488413321,2.2229,3722.9,3722.8,2.3577]
[1753488413723,2.2229,3722.9,3722.8,2.7429]
[1753488414326,2.75999,3722.9,3722.8,2.2058]
[1753488414525,2.75999,3722.9,3722.8,1.8206]
[1753488414727,1.40391,3722.8,3722.7,0.53711]
[1753488414922,2.76001,3722.8,3722.6,3.74493]
[1753488415222,0.8668,3722.8,3722.7,0.53712]
[1753488415427,0.8668,3722.8,3722.7,2.35772]
[1753488415725,2.2229,3722.8,3722.7,2.35772]
[1753488417922,2.2229,3722.8,3722.7,2.74292]
[1753488418930,1.7161,3722.8,3722.7,2.74292]
[1753488419129,0.6396,3722.8,3722.7,2.74292]
[1753488419629,0.3834,3722.8,3722.7,2.74292]
[1753488419819,2.47456,3723.1,3723.0,0.8901]
[1753488420025,2.75996,3723.1,3723.0,2.2058]
[1753488420220,2.75996,3723.1,3723.0,1.8206]
[1753488421432,2.75996,3723.1,3723.0,1.5661]
[1753488422123,2.75996,3723.1,3723.0,1.67508]
[1753488422323,2.2229,3723.1,3723.0,1.67508]
[1753488422526,2.75996,3723.1,3723.0,1.67508]
[1753488422733,2.75996,3723.1,3723.0,2.10318]
[1753488423034,2.75996,3723.1,3723.0,2.35768]
[1753488423935,2.2229,3723.1,3723.0,2.35768]
[1753488425137,2.75996,3723.1,3723.0,2.35768]
[1753488425530,2.2229,3723.1,3723.0,2.35768]
[1753488425736,2.75996,3723.1,3723.0,1.8206]
[1753488425937,2.75996,3723.1,3723.0,2.10318]
[1753488426330,2.75996,3723.1,3723.0,0.53708]
[1753488426836,2.1847,3722.8,3722.7,1.8418]
[1753488427032,1.40895,3722.5,3722.4,0.99276]
[1753488427232,1.09189,3722.2,3722.1,1.48719]
[1753488427444,2.72189,3722.2,3722.1,1.03159]
[1753488428037,0.53722,3722.0,3721.9,0.99283]
[1753488428233,2.72192,3722.0,3721.9,0.53723]
[1753488428429,1.40904,3721.9,3721.8,3.94386585]
[1753488428634,2.72194,3721.9,3721.8,3.94386585]
[1753488429539,2.1847,3721.9,3721.8,3.94386585]
[1753488429842,2.1847,3721.9,3721.8,6.14156585]
[1753488432528,2.1847,3721.9,3721.8,5.78567585]
[1753488432729,2.72194,3721.9,3721.8,0.73607585]
[1753488432934,2.72194,3721.9,3721.8,0.19882585]
[1753488433135,5.92974,3721.9,3721.8,0.19882585]
[1753488434038,5.92974,3721.9,3721.8,0.73607585]
[1753488436140,5.3925,3721.9,3721.8,2.57787585]
[1753488436340,2.1847,3721.9,3721.8,2.57787585]
[1753488436939,2.72194,3721.9,3721.8,2.57787585]
[1753488437335,2.72194,3721.9,3721.8,1.20922585]
[1753488437538,6.54054638,3721.9,3721.8,0.19882585]
[1753488439643,6.54054638,3721.9,3721.8,0.73607585]
[1753488439839,6.54054638,3721.9,3721.8,2.33237585]
[1753488440247,6.54054638,3721.9,3721.8,2.57787585]
[1753488440649,6.00330638,3721.9,3721.8,2.57787585]
[1753488440838,17.57554638,3721.9,3721.8,2.93377585]
[1753488441346,17.57554638,3721.9,3721.8,2.57787585]
[1753488441849,17.57554638,3721.9,3721.8,2.93377585]
[1753488442053,17.57554638,3721.9,3721.8,0.19882585]
[1753488444554,17.57554638,3721.9,3721.8,0.69322585]
[1753488444855,17.57554638,3721.9,3721.8,1.14882585]
[1753488445954,17.57554638,3721.9,3721.8,1.45812585]
[1753488446853,17.57554638,3721.9,3721.8,0.19882585]
[1753488449348,17.57554638,3721.9,3721.8,0.69322585]
[1753488449554,17.57554638,3721.9,3721.8,1.79512585]
[1753488449954,17.57554638,3721.9,3721.8,2.04062585]
[1753488458862,17.57554638,3721.9,3721.8,0.19882585]
[1753488459067,17.57554638,3721.9,3721.3,0.4655]
[1753488459068,1.40621,3721.4,3721.3,0.4655]
[1753488459268,14.39991638,3721.4,3721.3,1.5318]
[1753488459568,14.39991638,3721.4,3721.3,1.7831]
[1753488460366,14.39991638,3721.4,3721.3,2.162]
[1753488460561,12.80011638,3721.4,3721.3,2.162]
[1753488460766,12.56051638,3721.4,3721.3,2.162]
[1753488461360,0.61080638,3721.4,3721.3,2.162]
[1753488461666,11.035,3721.6,3721.5,1.41869]
[1753488461964,0.61234021,3721.6,3721.5,2.69929]
[1753488462360,11.64734021,3721.6,3721.5,2.69929]
[1753488463570,0.61234021,3721.6,3721.5,2.69929]
[1753488463771,1.76662021,3721.6,3721.5,2.69929]
[1753488464170,1.22934021,3721.6,3721.5,2.69929]
[1753488464369,2.23432021,3721.6,3721.5,2.69929]
[1753488464571,1.69704021,3721.6,3721.5,2.69929]
[1753488464774,1.22934021,3721.6,3721.5,2.69929]
[1753488467374,2.73712021,3721.6,3721.5,2.69929]
[1753488467566,3.36642021,3721.6,3721.5,2.69929]
[1753488467771,3.36642021,3721.6,3721.5,2.32039]
[1753488468177,3.36642021,3721.6,3721.5,1.7831]
[1753488468376,3.36642021,3721.6,3721.5,2.32039]
[1753488468575,3.36642021,3721.6,3721.5,1.63289]
[1753488468776,3.36642021,3721.6,3721.5,2.06909]
[1753488468978,3.36642021,3721.6,3721.5,2.32039]
[1753488469476,2.82914021,3721.6,3721.5,2.32039]
[1753488470084,13.86314021,3721.6,3721.5,2.69929]
[1753488473783,14.40042021,3721.6,3721.5,2.69929]
[1753488474085,13.86314021,3721.6,3721.5,2.69929]
[1753488474285,14.40042021,3721.6,3721.5,2.69929]
[1753488474479,13.86314021,3721.6,3721.5,2.69929]
[1753488474685,14.40042021,3721.6,3721.5,3.03878816]
[1753488475179,14.40042021,3721.6,3721.5,2.12259816]
[1753488476187,14.40042021,3721.6,3721.5,0.33949816]
[1753488477486,14.40042021,3721.6,3721.5,0.80499816]
[1753488478083,14.40042021,3721.6,3721.5,0.33949816]
[1753488478888,14.40042021,3721.6,3721.5,0.80499816]
[1753488480382,3.36642021,3721.6,3721.5,3.03878816]
[1753488480687,13.13502021,3721.6,3721.5,3.03878816]
[1753488480886,13.13502021,3721.6,3721.5,2.50149816]
[1753488481085,14.10552021,3721.6,3721.5,2.50149816]
[1753488481285,14.39942021,3721.6,3721.5,2.50149816]
[1753488481485,13.89762021,3721.6,3721.5,3.03878816]
[1753488481686,13.13602021,3721.6,3721.5,3.03878816]
[1753488482389,14.40042021,3721.6,3721.5,2.50149816]
[1753488482991,3.36642021,3721.6,3721.5,2.50149816]
[1753488483290,14.39942021,3721.6,3721.5,3.03878816]
[1753488483492,14.39942021,3721.6,3721.5,2.50149816]
[1753488483885,14.39942021,3721.6,3721.5,3.03878816]
[1753488484090,14.39942021,3721.6,3721.5,2.50128819]
[1753488486590,14.39942021,3721.6,3721.5,3.03857819]
[1753488486991,14.39942021,3721.6,3721.5,2.50128819]
[1753488487290,14.39942021,3721.6,3721.5,3.03857819]
[1753488487592,14.39942021,3721.6,3721.5,2.50128819]
[1753488487794,14.39942021,3721.6,3721.5,3.03857819]
[1753488488393,14.39942021,3721.6,3721.5,2.50128819]
[1753488489194,14.39942021,3721.6,3721.5,3.03857819]
[1753488490396,14.39942021,3721.6,3721.5,2.50128819]
[1753488491590,3.36642021,3721.6,3721.5,2.50128819]
[1753488491791,14.39842021,3721.6,3721.5,2.50128819]
[1753488492797,2.20167,3721.0,3720.9,2.1387]
[1753488492989,14.2722689,3721.0,3720.9,0.34743374]
[1753488493193,14.2722689,3721.0,3720.9,2.10813374]
[1753488493892,14.2722689,3721.0,3720.9,1.10853374]
[1753488494093,14.2722689,3721.0,3720.9,2.10813374]
[1753488494991,14.2722689,3721.0,3720.9,2.48613374]
[1753488495191,14.2722689,3721.0,3720.9,2.48617094]
[1753488495889,1.7488689,3721.0,3720.9,2.48617094]
[1753488496085,1.1488689,3721.0,3720.9,2.48617094]
[1753488497597,3.2402689,3721.0,3720.9,2.48617094]
[1753488498498,3.2402689,3721.0,3720.9,1.41707094]
[1753488498693,3.2402689,3721.0,3720.9,0.34747094]
[1753488499596,3.2402689,3721.0,3720.9,1.86027094]
[1753488499796,3.2402689,3721.0,3720.9,2.10817094]
[1753488500798,3.2402689,3721.0,3720.9,2.48617094]
[1753488503887,3.2402689,3721.0,3720.9,2.10817094]
[1753488504295,2.8131689,3721.0,3720.9,1.36217094]
[1753488504490,3.2402689,3721.0,3720.9,2.10817094]
[1753488504891,3.2402689,3721.0,3720.9,2.48617094]
[1753488507904,3.2402689,3721.0,3720.9,2.10817094]
[1753488510002,6.4480689,3721.0,3720.9,2.10817094]
[1753488510599,6.4480689,3721.0,3720.9,2.48617094]
[1753488514305,3.2402689,3721.0,3720.9,2.48617094]
[1753488514505,6.4480689,3721.0,3720.9,2.48617094]
[1753488514908,6.4480689,3721.0,3720.9,2.10817094]
[1753488517808,6.4480689,3721.0,3720.9,2.47507094]
[1753488518206,15.3886689,3721.0,3720.9,2.47507094]
[1753488519408,12.5365689,3721.0,3720.9,2.47507094]
[1753488522211,12.5365689,3721.0,3720.9,2.47611149]
[1753488522710,1.5045689,3721.0,3720.9,2.47611149]
[1753488524410,1.1488689,3721.0,3720.9,2.47611149]
[1753488524607,1.5045689,3721.0,3720.9,2.47611149]
[1753488525310,3.2757689,3721.0,3720.9,2.47611149]
[1753488527910,3.2757689,3721.0,3720.9,2.10935566]
[1753488528118,3.2757689,3721.0,3720.9,1.41825566]
[1753488528309,6.4835689,3721.0,3720.9,0.34865566]
[1753488530517,6.4835689,3721.0,3720.9,5.66e-06]
[1753488533413,6.4835689,3721.0,3720.9,0.47220566]
[1753488533608,6.4835689,3721.0,3720.9,5.66e-06]
[1753488533810,1.41047,3720.3,3720.2,2.14011594]
[1753488534010,12.44147,3720.3,3720.2,2.14011594]
[1753488534214,13.05330265,3720.3,3720.2,1.77321594]
[1753488534421,14.30720265,3720.3,3720.2,2.14011594]
[1753488535120,13.69537,3720.3,3720.2,2.14011594]
[1753488535820,14.30712889,3720.3,3720.2,2.14011594]
[1753488536120,13.69537,3720.3,3720.2,2.14011594]
[1753488537016,13.69537,3720.3,3720.2,1.77321594]
[1753488538122,13.69537,3720.3,3720.2,2.14011594]
[1753488540418,13.69537,3720.3,3720.2,1.77321594]
[1753488540725,14.30664142,3720.3,3720.2,1.77321594]
[1753488543018,14.30262359,3720.3,3720.2,1.77321594]
[1753488543218,14.30262359,3720.3,3720.2,1.09101594]
[1753488543520,14.30262359,3720.3,3720.2,0.78071594]
[1753488543714,14.30262359,3720.3,3720.2,1.21561594]
[1753488544424,14.30262359,3720.3,3720.2,1.52591594]
[1753488545026,14.30262359,3720.3,3720.2,0.01881594]
[1753488545326,2.66702,3719.9,3719.8,1.95793275]
[1753488545526,3.27759023,3719.9,3719.8,1.95793275]
[1753488547223,2.66702,3719.9,3719.8,1.95793275]
[1753488548327,2.66702,3719.9,3719.8,0.19893275]
[1753488549034,3.2770291,3719.9,3719.8,0.19893275]
[1753488549733,3.2770291,3719.9,3719.8,0.64673275]
[1753488549933,3.2770291,3719.9,3719.8,1.72903275]
[1753488550334,3.2770291,3719.9,3719.8,0.19893275]
[1753488551228,3.2770291,3719.9,3719.8,2.75e-06]
[1753488553332,2.66702,3719.9,3719.8,2.75e-06]
[1753488554136,3.27670681,3719.9,3719.8,2.75e-06]
[1753488556437,3.27670681,3719.9,3719.8,0.19907275]
[1753488556933,2.30306,3719.6,3719.5,1.2121]
[1753488557137,16.90686,3719.6,3719.5,1.2121]
[1753488558641,16.90686,3719.6,3719.5,2.1068]
[1753488559435,4.04876,3719.6,3719.5,2.1068]
[1753488559639,14.77736,3719.6,3719.5,2.1068]
[1753488561140,15.14136,3719.6,3719.5,2.1068]
[1753488562939,16.07466,3719.6,3719.5,2.1068]
[1753488563142,16.30666,3719.6,3719.5,2.1068]
[1753488563541,16.90686,3719.6,3719.5,2.1068]
[1753488563744,5.87486,3719.6,3719.5,2.1068]
[1753488563945,16.90586,3719.6,3719.5,2.1068]
[1753488564445,2.66711,3719.3,3719.2,1.6599]
[1753488564942,2.66711,3719.3,3719.2,2.1068]
[1753488567848,2.22171,3719.3,3719.2,2.1068]
[1753488568037,1.73381,3719.3,3719.2,2.1068]
[1753488568944,0.53761,3719.3,3719.2,2.1068]
[1753488569548,1.51252035,3719.3,3719.2,2.1068]
[1753488569846,3.27802035,3719.3,3719.2,2.1068]
[1753488570749,12.77552035,3719.3,3719.2,2.1068]
[1753488570938,12.17952035,3719.3,3719.2,2.1068]
[1753488571548,13.37572035,3719.3,3719.2,2.1068]
[1753488571849,14.30902035,3719.3,3719.2,2.1068]
[1753488573044,13.07232035,3719.3,3719.2,2.1068]
[1753488573250,12.77552035,3719.3,3719.2,2.1068]
[1753488574247,12.54352035,3719.3,3719.2,2.1068]
[1753488574646,14.30902035,3719.3,3719.2,2.1068]
[1753488575453,14.30802035,3719.3,3719.2,2.1068]
[1753488575653,1.39885,3719.0,3718.9,1.21860076]
[1753488575858,2.66735,3719.0,3718.9,1.21860076]
[1753488576354,2.66735,3719.0,3718.9,2.14280076]
[1753488576953,3.2787948,3719.0,3718.9,2.14280076]
[1753488577158,2.66735,3719.0,3718.9,2.14280076]
[1753488577747,3.27878524,3719.0,3718.9,2.14280076]
[1753488580766,3.27878524,3719.0,3718.9,1.26720076]
[1753488580961,3.2078,3719.6,3719.1,0.5227]
[1753488581166,0.53761,3719.3,3719.2,2.0944]
[1753488581367,2.66731,3719.3,3719.2,2.0944]
[1753488581564,3.27874715,3719.3,3719.2,2.0944]
[1753488581768,1.39885,3719.0,3718.9,1.78990076]
[1753488581966,3.27881067,3719.0,3718.9,1.78990076]
[1753488582266,3.27881067,3719.0,3718.9,0.04840076]
[1753488582855,1.39892,3718.5,3718.4,1.7415]
[1753488583062,13.69742,3718.5,3718.4,1.7415]
[1753488584568,2.1297,3718.3,3718.0,0.9242]
[1753488584869,2.66748,3718.1,3718.0,1.7415]
[1753488588169,2.66748,3718.1,3718.0,1.6299]
[1753488588368,13.69748,3718.1,3718.0,2.0944]
[1753488588770,2.66748,3718.1,3718.0,2.0944]
[1753488589073,13.69748,3718.1,3718.0,2.0944]
[1753488589463,2.66748,3718.1,3718.0,2.0944]
[1753488589663,13.69848,3718.1,3718.0,2.0944]
[1753488590574,2.66751,3717.9,3717.8,2.29343977]
[1753488590772,3.27726159,3717.9,3717.8,2.29343977]
[1753488592371,2.66751,3717.9,3717.8,1.99883977]
[1753488592669,3.27674988,3717.9,3717.8,0.19903977]
[1753488593172,3.27674988,3717.9,3717.8,1.64143977]
[1753488593367,14.32674988,3717.9,3717.8,0.19903977]
[1753488593564,3.27674988,3717.9,3717.8,0.19903977]
[1753488593766,14.33074988,3717.9,3717.8,2.29343977]
[1753488594161,13.72151,3717.9,3717.8,2.29343977]
[1753488594768,2.66751,3717.9,3717.8,2.29343977]
[1753488594969,13.72151,3717.9,3717.8,2.29343977]
[1753488596878,14.33014462,3717.9,3717.8,0.19903977]
[1753488599474,0.8612,3717.3,3717.2,0.53703113]
[1753488599677,0.8612,3717.3,3717.2,0.24243113]
[1753488599678,16.9304,3717.3,3717.2,0.24243113]
[1753488599975,16.9304,3717.3,3717.2,0.01883113]
[1753488600776,16.9304,3717.3,3717.2,1.29583113]
[1753488600971,3.7457,3717.3,3717.2,1.64873113]
[1753488601174,14.8007,3717.3,3717.2,1.64873113]
[1753488601675,14.8007,3717.3,3717.2,2.04813113]
[1753488601877,15.2558,3717.3,3717.2,2.04813113]
[1753488602073,15.6101,3717.3,3717.2,2.04813113]
[1753488602881,4.5551,3717.3,3717.2,2.04813113]
[1753488603171,15.6101,3717.3,3717.2,2.04813113]
[1753488603573,16.2336,3717.3,3717.2,0.01883113]
[1753488603772,16.9304,3717.3,3717.2,2.04813113]
[1753488605572,5.115,3717.3,3717.2,2.04813113]
[1753488605780,14.8027,3717.3,3717.2,2.04813113]
[1753488606180,3.7457,3717.3,3717.2,2.04813113]
[1753488606477,14.8017,3717.3,3717.2,2.04813113]
[1753488606777,3.7457,3717.3,3717.2,2.04813113]
[1753488606977,14.8017,3717.3,3717.2,2.04813113]
[1753488608274,1.34463,3717.7,3717.2,9.85653113]
[1753488608482,0.53784,3717.7,3717.6,0.8604]
[1753488608780,12.95574,3717.7,3717.6,0.8604]
[1753488609276,13.72924,3717.7,3717.6,2.0158]
[1753488610884,13.73324,3717.7,3717.6,2.0158]
[1753488611080,13.26744,3717.7,3717.6,2.0158]
[1753488611280,2.20944,3717.7,3717.6,2.0158]
[1753488611578,13.26644,3717.7,3717.6,2.0158]
[1753488611779,2.20944,3717.7,3717.6,2.0158]
[1753488611976,13.73124,3717.7,3717.6,2.0158]
[1753488612481,2.67524,3717.7,3717.6,2.0158]
[1753488612984,13.73024,3717.7,3717.6,2.0158]
[1753488614478,2.67524,3717.7,3717.6,2.0158]
[1753488614686,13.72924,3717.7,3717.6,2.0158]
[1753488615571,2.67524,3717.7,3717.6,2.0158]
[1753488615770,13.72724,3717.7,3717.6,2.0158]
[1753488616181,14.34223146,3717.7,3717.6,2.0158]
[1753488616986,13.72724,3717.7,3717.6,2.0158]
[1753488617387,14.34241563,3717.7,3717.6,2.0158]